Workbook

Sheet Start (hidden)
B4: Das Makro ist momentan nicht aktiviert
B5: Bitte Aktivieren Sie das Makro
B6: Ohne Makro funktioniert diese Datei nicht
B8: roland.schnurr@sixsigmablackbelt.de
B10: https://www.sixsigmablackbelt.de

Sheet HinweisMakro (hidden)

Sheet MSA Verfahren 1 2s
E2: Messsystemanalyse Verfahren 1: Cg / Cgk
B3: Akt. Dat.: | C3: =TODAY() -> 2023-05-16 | D3: Bearb.Name: | E3: Max Mustermann | G3: Abt./Kst.: | H3: Musterfirma | J3: Prüfort: | K3: Messraum | N3: Dieser Bereich wird nicht gedruckt
B4: Prüfmittel | E4: Normal | H4: Merkmal
B5: Bezeichnung: | C5: Vorrichtung | E5: Bezeichnung: | F5: Ring | H5: Bezeichnung: | I5: Durchmesser | N5: Die Vorlage enthält einige Einschränkungen:
B6: Nummer: | C6: 452344 | E6: Nummer: | F6: 1437 | H6: Nummer | I6: 1 | N6: ="- das Wasserzeichen ""www.sixsigmablackbeltde""" -> - das Wasserzeichen "www.sixsigmablackbeltde"
B7: Auflösung: | C7: 0.001 | E7: Istwert: | F7: 20.302 | H7: Nennmaß: | I7: 20.3 | J7: OSG: | K7: 20.45 | N7: ="- ein Teil der Zellen ist gesperrt" -> - ein Teil der Zellen ist gesperrt
B8: Prüfgrnd.: | C8: Abnahme | E8: Einheit: | F8: mm | H8: Einheit: | I8: mm | J8: USG: | K8: 20.15 | N8: ="- etc." -> - etc.
E9: U Kal | F9: 0.0002
B10: Bemerkung: | N10: Benötigen Sie die Vorlage
N11: ="- ohne Einschränkungen" -> - ohne Einschränkungen
N12: ="- in englischer Sprache" -> - in englischer Sprache
N13: ="- mit Ihrem Logo" -> - mit Ihrem Logo
N14: schreiben Sie an
N15: roland.schnurr@sixsigmablackbelt.de
N17: Eine Übersicht unserer Vorlagen und deren Kosten finden Sie unter:
N18: https://www.sixsigmablackbelt.de/preisvergleich/
N20: Ein Auszug der Unternehmen, die uns vertrauen finden Sie unter:
N21: https://www.sixsigmablackbelt.de/referenzen/
B22: Einzelwerte
B23: ="1 - 5" -> 1 - 5 | C23: ="6 - 10" -> 6 - 10 | D23: ="11 - 15" -> 11 - 15 | E23: ="16 - 20" -> 16 - 20 | F23: ="21 - 25" -> 21 - 25 | G23: ="26 - 30" -> 26 - 30 | H23: ="31 - 35" -> 31 - 35 | I23: ="36 - 40" -> 36 - 40 | J23: ="41 - 45" -> 41 - 45 | K23: ="46 - 50" -> 46 - 50 | N23: Die Validierung der Vorlagen mit Minitab und R, finden Sie unter:
B24: 20.303 | C24: 20.296 | D24: 20.311 | E24: 20.298 | F24: 20.311 | G24: 20.308 | H24: 20.313 | I24: 20.303 | J24: 20.306 | K24: 20.302 | N24: https://www.sixsigmablackbelt.de/preisvergleich/
B25: 20.301 | C25: 20.301 | D25: 20.297 | E25: 20.295 | F25: 20.309 | G25: 20.302 | H25: 20.303 | I25: 20.31 | J25: 20.296 | K25: 20.303
B26: 20.304 | C26: 20.3 | D26: 20.295 | E26: 20.301 | F26: 20.308 | G26: 20.294 | H26: 20.308 | I26: 20.304 | J26: 20.306 | K26: 20.307
B27: 20.303 | C27: 20.307 | D27: 20.302 | E27: 20.307 | F27: 20.304 | G27: 20.302 | H27: 20.298 | I27: 20.309 | J27: 20.299 | K27: 20.303
B28: 20.306 | C28: 20.305 | D28: 20.304 | E28: 20.312 | F28: 20.298 | G28: 20.304 | H28: 20.306 | I28: 20.305 | J28: 20.3 | K28: 20.305
B30: Spezifikationswerte | D30: Gemessene Werte | F30: Statistische Werte | H30: Syst. Messabweichung
B31: xm | C31: =sixmsa1_c31(F7) -> 20.302 | F31: xg | G31: =sixmsa1_g31(xi2s) -> 20.30348 | H31: BIAS | I31: =Mittelwert2s-xm2s -> 0.00148
B32: xm - 0,1*T | C32: =sixmsa1_c32(xm2s,T2s) -> 20.272 | D32: xmin. | E32: =sixmsa1_e32(xi2s) -> 20.294 | F32: xg - 2 * sg | G32: =sixmsa1_g32(xg2s,sg2s) -> 20.29416694 | H32: t | I32: =SQRT(E35)*ABS(Mittelwert2s-xm2s)/sg2s -> 2.247420695
B33: xm + 0,1*T | C33: =sixmsa1_c33(xm2s,T2s) -> 20.332 | D33: xmax. | E33: =sixmsa1_e33(xi2s) -> 20.313 | F33: xg + 2 * sg | G33: =sixmsa1_g33(xg2s,sg2s) -> 20.31279306
B34: 0,2 * T | C34: =sixmsa1_c34(T2s) -> 0.06 | D34: R | E34: =sixmsa1_e34(xmax2s, xmin2s) -> 0.019 | F34: 4 * sg | G34: =sixmsa1_g34(sg2s) -> 0.01862611728
B35: T | C35: =sixmsa1_c35(OSG2s,USG2s) -> 0.3 | D35: nges. | E35: =sixmsa1_e35(xi2s) -> 50 | F35: sg | G35: =sixmsa1_g35(xi2s) -> 0.00465652932
B37: Mindestforderung an die Prüfmittelkennzahl | F37: Cg ≥ | G37: 1.33
F38: Cgk ≥ | G38: 1.33
I40: Messsystem fähig für T bis
C41: = | D41: =(0.2*T2s)/(4*sg2s) -> 3.221283271 | I41: Tmin/Cg = | J41: =Forderungcg2s*G34/0.2 -> 0.1238636799 | K41: =Einheit2s -> mm
C43: = | D43: =(0.1*T2s-ABS(xg2s-xm2s))/(2*sg2s) -> 3.06236663 | I43: Tmin/Cgk = | J43: =(G34/2*Forderungcgk2s+ABS(I31))/0.1 -> 0.1386636799 | K43: =Einheit2s -> mm
B45: Auflösung in % von T = | D45: =ROUND(Aufloesung/T2s,10) -> 0.0033333333 | I45: Tmax. Aufl. = | J45: =C7/0.05 -> 0.02 | K45: =Einheit2s -> mm
B48: Hinweise: | C48: 1.) | D48: =IF(C7,IF(D45<=0.05,"Auflösung ist ausreichend ! (Auflösung ist kleiner oder gleich 5% !)","Das Messgerät ist aufgrund der Auflösung für die Messaufgabe nicht geeignet!"),) -> Auflösung ist ausreichend ! (Auflösung ist kleiner oder gleich 5% !)
C49: 3.) | D49: =IF(UKAL2s<0.1*T2s,"Die Unsicherheit der Kalibrierung des Normales ist ausreichend (UKAL<0,1*T)","Die Unsicherheit der Kalibrierung des Normales ist zu groß") -> Die Unsicherheit der Kalibrierung des Normales ist ausreichend (UKAL<0,1*T)
C50: 2.) | D50: =IF(AND(cgk2s>=Forderungcgk2s,cg2s>=Forderungcg2s),"Das Messmittel ist fähig und erfüllt die Mindestforderung an die Prüfmittelkennzahl", "Messmittel ist nicht fähig") -> Das Messmittel ist fähig und erfüllt die Mindestforderung an die Prüfmittelkennzahl
C52: Beschreibung: | E52: m = Master (Normal) | G52: g = Gage (Prüfmittel)
B53: Datum: | C53: ________ | E53: Unterschrift: | F53: __________________ | I53: Abteilung: | J53: __________________

Sheet MSA Verfahren 1 3s
E2: Messsystemanalyse Verfahren 1: Cg / Cgk
B3: Akt. Dat.: | C3: =TODAY() -> 2023-05-16 | D3: Bearb.Name: | E3: Max Mustermann | G3: Abt./Kst.: | H3: Musterfirma | J3: Prüfort: | K3: Messraum | N3: Dieser Bereich wird nicht gedruckt
B4: Prüfmittel | E4: Normal | H4: Merkmal
B5: Bezeichnung: | C5: Vorrichtung | E5: Bezeichnung: | F5: Ring | H5: Bezeichnung: | I5: Durchmesser | N5: Die Vorlage enthält einige Einschränkungen:
B6: Nummer: | C6: 452344 | E6: Nummer: | F6: 1437 | H6: Nummer | I6: 1 | N6: ="- das Wasserzeichen ""www.sixsigmablackbeltde""" -> - das Wasserzeichen "www.sixsigmablackbeltde"
B7: Auflösung: | C7: 0.001 | E7: Istwert: | F7: 20.302 | H7: Nennmaß: | I7: 20.3 | J7: OSG: | K7: 20.45 | N7: ="- ein Teil der Zellen ist gesperrt" -> - ein Teil der Zellen ist gesperrt
B8: Prüfgrnd.: | C8: Abnahme | E8: Einheit: | F8: mm | H8: Einheit: | I8: mm | J8: USG: | K8: 20.15 | N8: ="- etc." -> - etc.
E9: U Kal | F9: 0.0002
B10: Bemerkung: | N10: Benötigen Sie die Vorlage
N11: ="- ohne Einschränkungen" -> - ohne Einschränkungen
N12: ="- in englischer Sprache" -> - in englischer Sprache
N13: ="- mit Ihrem Logo" -> - mit Ihrem Logo
N14: schreiben Sie an
N15: roland.schnurr@sixsigmablackbelt.de
N17: Eine Übersicht unserer Vorlagen und deren Kosten finden Sie unter:
N18: https://www.sixsigmablackbelt.de/preisvergleich/
N20: Ein Auszug der Unternehmen, die uns vertrauen finden Sie unter:
N21: https://www.sixsigmablackbelt.de/referenzen/
B22: Einzelwerte
B23: ="1 - 5" -> 1 - 5 | C23: ="6 - 10" -> 6 - 10 | D23: ="11 - 15" -> 11 - 15 | E23: ="16 - 20" -> 16 - 20 | F23: ="21 - 25" -> 21 - 25 | G23: ="26 - 30" -> 26 - 30 | H23: ="31 - 35" -> 31 - 35 | I23: ="36 - 40" -> 36 - 40 | J23: ="41 - 45" -> 41 - 45 | K23: ="46 - 50" -> 46 - 50 | N23: Die Validierung der Vorlagen mit Minitab und R, finden Sie unter:
B24: 20.303 | C24: 20.296 | D24: 20.311 | E24: 20.298 | F24: 20.311 | G24: 20.308 | H24: 20.313 | I24: 20.303 | J24: 20.306 | K24: 20.302 | N24: https://www.sixsigmablackbelt.de/preisvergleich/
B25: 20.301 | C25: 20.301 | D25: 20.297 | E25: 20.295 | F25: 20.309 | G25: 20.302 | H25: 20.303 | I25: 20.31 | J25: 20.296 | K25: 20.303
B26: 20.304 | C26: 20.3 | D26: 20.295 | E26: 20.301 | F26: 20.308 | G26: 20.294 | H26: 20.308 | I26: 20.304 | J26: 20.306 | K26: 20.307
B27: 20.303 | C27: 20.307 | D27: 20.302 | E27: 20.307 | F27: 20.304 | G27: 20.302 | H27: 20.298 | I27: 20.309 | J27: 20.299 | K27: 20.303
B28: 20.306 | C28: 20.305 | D28: 20.304 | E28: 20.312 | F28: 20.298 | G28: 20.304 | H28: 20.306 | I28: 20.305 | J28: 20.3 | K28: 20.305
B30: Spezifikationswerte | D30: Gemessene Werte | F30: Statistische Werte | H30: Syst. Messabweichung
B31: xm | C31: =sixmsa1_c31(F7) -> 20.302 | F31: xg | G31: =sixmsa1_g31(xi3s) -> 20.30348 | H31: BIAS | I31: =Mittelwert3s-xm3s -> 0.00148
B32: xm - 0,1*T | C32: =sixmsa1_c32(xm3s,T3s) -> 20.272 | D32: xmin. | E32: =sixmsa1_e32(xi3s) -> 20.294 | F32: xg - 3 * sg | G32: =sixmsa2_g32(xg3s,sg3s) -> 20.28951041 | H32: t | I32: =SQRT(E35)*ABS(Mittelwert3s-xm3s)/sg3s -> 2.247420695
B33: xm + 0,1*T | C33: =sixmsa1_c33(xm3s,T3s) -> 20.332 | D33: xmax. | E33: =sixmsa1_e33(xi3s) -> 20.313 | F33: xg + 3 * sg | G33: =sixmsa2_g33(xg3s,sg3s) -> 20.31744959
B34: 0,2 * T | C34: =sixmsa1_c34(T3s) -> 0.06 | D34: R | E34: =sixmsa1_e34(xmax3s, xmin3s) -> 0.019 | F34: 6 * sg | G34: =sixmsa2_g34(sg3s) -> 0.02793917592
B35: T | C35: =sixmsa1_c35(OSG3s,USG3s) -> 0.3 | D35: nges. | E35: =sixmsa1_e35(xi3s) -> 50 | F35: sg | G35: =sixmsa1_g35(xi3s) -> 0.00465652932
B37: Mindestforderung an die Prüfmittelkennzahl | F37: Cg ≥ | G37: 1.33
F38: Cgk ≥ | G38: 1.33
I40: Messsystem fähig für T bis
C41: = | D41: =C34/G34 -> 2.147522181 | I41: Tmin/Cg = | J41: =Forderungcg3s*G34/0.2 -> 0.1857955199 | K41: =Einheit3s -> mm
C43: = | D43: =(0.1*T3s-ABS(xg3s-xm3s))/(3*sg3s) -> 2.041577753 | I43: Tmin/Cgk = | J43: =(G34/2*Forderungcgk3s+ABS(I31))/0.1 -> 0.2005955199 | K43: =Einheit3s -> mm
B45: Auflösung in % von T = | D45: =ROUND(Aufloesung/T3s,10) -> 0.0033333333 | I45: Tmax. Aufl. = | J45: =C7/0.05 -> 0.02 | K45: =Einheit3s -> mm
B48: Hinweise: | C48: 1.) | D48: =IF(C7,IF(D45<=0.05,"Auflösung ist ausreichend ! (Auflösung ist kleiner oder gleich 5% !)","Das Messgerät ist aufgrund der Auflösung für die Messaufgabe nicht geeignet!"),) -> Auflösung ist ausreichend ! (Auflösung ist kleiner oder gleich 5% !)
C49: 3.) | D49: =IF(UKAL3s<0.1*T3s,"Die Unsicherheit der Kalibrierung des Normales ist ausreichend (UKAL<0,1*T)","Die Unsicherheit der Kalibrierung des Normales ist zu groß") -> Die Unsicherheit der Kalibrierung des Normales ist ausreichend (UKAL<0,1*T)
C50: 2.) | D50: =IF(AND(cgk3s>=Forderungcgk3s,cg3s>=Forderungcg3s),"Das Messmittel ist fähig und erfüllt die Mindestforderung an die Prüfmittelkennzahl", "Messmittel ist nicht fähig") -> Das Messmittel ist fähig und erfüllt die Mindestforderung an die Prüfmittelkennzahl
C52: Beschreibung: | E52: m = Master (Normal) | G52: g = Gage (Prüfmittel)
B53: Datum: | C53: ________ | E53: Unterschrift: | F53: __________________ | I53: Abteilung: | J53: __________________

Sheet MSA Verfahren 1 Berechnung 2s (hidden)
D1: Diagramm | P1: Diagramm cg und cgk
A3: Bezeichnung für Diagramm | B3: ='MSA Verfahren 1 2s'!$I$5 -> Durchmesser | D3: Durchmesser | E3: Mittelwert Merkmal | F3: ="+2 sg" -> +2 sg | G3: ="+3 sg" -> +3 sg | H3: ="-2 sg" -> -2 sg | I3: ="-3 sg" -> -3 sg | J3: OSG Merkmal | K3: USG Merkmal | L3: Mittelwert Normal | M3: USG Normal | N3: OSG Normal | P3: cgk | Q3: 0 | R3: =cgk2s -> 3.06236663 | S3: 0
A4: i | B4: x(i) | D4: x(i) | E4: xg | F4: xg+2*sg | G4: xg+3*sg | H4: xg-2*sg | I4: xg-3*sg | J4: OSG | K4: USG | L4: xm | M4: xm-0,1*T | N4: xm+0,1*T | P4: Anforderung cgk | Q4: =Forderungcgk2s -> 1.33 | R4: 0 | S4: =ABS(Q4-R3)+0.2 -> 1.93236663
A5: 1 | B5: =IF('MSA Verfahren 1 2s'!B24="",#N/A,'MSA Verfahren 1 2s'!B24) -> 20.303 | C5: =IF(B5<>"",A5,1) -> 1 | D5: =IF(B5<>"",B5,"") -> 20.303 | E5: =Mittelwert2s -> 20.30348 | F5: =xg2s+2*sg2s -> 20.31279306 | G5: =xg2s+3*sg2s -> 20.31744959 | H5: =xg2s-2*sg2s -> 20.29416694 | I5: =xg2s-3*sg2s -> 20.28951041 | J5: =OSG2s -> 20.45 | K5: =USG2s -> 20.15 | L5: =xm2s -> 20.302 | M5: =xm2s-0.1*T2s -> 20.272 | N5: =xm2s+0.1*T2s -> 20.332
A6: 2 | B6: =IF('MSA Verfahren 1 2s'!B25="",#N/A,'MSA Verfahren 1 2s'!B25) -> 20.301 | C6: =IF(B6<>"",A6,C5) -> 2 | D6: =IF(B6<>"",B6,"") -> 20.301 | E6: 20.30348 | F6: 20.31279306 | G6: 20.31744959 | H6: 20.29416694 | I6: 20.28951041 | J6: 20.45 | K6: 20.15 | L6: 20.302 | M6: 20.272 | N6: 20.332 | P6: cg | Q6: 0 | R6: =cg2s -> 3.221283271 | S6: 0
A7: 3 | B7: =IF('MSA Verfahren 1 2s'!B26="",#N/A,'MSA Verfahren 1 2s'!B26) -> 20.304 | C7: =IF(B7<>"",A7,C6) -> 3 | D7: 20.304 | E7: 20.30348 | F7: 20.31279306 | G7: 20.31744959 | H7: 20.29416694 | I7: 20.28951041 | J7: 20.45 | K7: 20.15 | L7: 20.302 | M7: 20.272 | N7: 20.332 | P7: Anforderung cg | Q7: =Forderungcg2s -> 1.33 | R7: 0 | S7: =ABS(Q7-R6)+0.2 -> 2.091283271
A8: 4 | B8: =IF('MSA Verfahren 1 2s'!B27="",#N/A,'MSA Verfahren 1 2s'!B27) -> 20.303 | C8: 4 | D8: 20.303 | E8: 20.30348 | F8: 20.31279306 | G8: 20.31744959 | H8: 20.29416694 | I8: 20.28951041 | J8: 20.45 | K8: 20.15 | L8: 20.302 | M8: 20.272 | N8: 20.332
A9: 5 | B9: =IF('MSA Verfahren 1 2s'!B28="",#N/A,'MSA Verfahren 1 2s'!B28) -> 20.306 | C9: 5 | D9: 20.306 | E9: 20.30348 | F9: 20.31279306 | G9: 20.31744959 | H9: 20.29416694 | I9: 20.28951041 | J9: 20.45 | K9: 20.15 | L9: 20.302 | M9: 20.272 | N9: 20.332
A10: 6 | B10: =IF('MSA Verfahren 1 2s'!C24="",#N/A,'MSA Verfahren 1 2s'!C24) -> 20.296 | C10: 6 | D10: 20.296 | E10: 20.30348 | F10: 20.31279306 | G10: 20.31744959 | H10: 20.29416694 | I10: 20.28951041 | J10: 20.45 | K10: 20.15 | L10: 20.302 | M10: 20.272 | N10: 20.332
A11: 7 | B11: =IF('MSA Verfahren 1 2s'!C25="",#N/A,'MSA Verfahren 1 2s'!C25) -> 20.301 | C11: 7 | D11: 20.301 | E11: 20.30348 | F11: 20.31279306 | G11: 20.31744959 | H11: 20.29416694 | I11: 20.28951041 | J11: 20.45 | K11: 20.15 | L11: 20.302 | M11: 20.272 | N11: 20.332
A12: 8 | B12: =IF('MSA Verfahren 1 2s'!C26="",#N/A,'MSA Verfahren 1 2s'!C26) -> 20.3 | C12: 8 | D12: 20.3 | E12: 20.30348 | F12: 20.31279306 | G12: 20.31744959 | H12: 20.29416694 | I12: 20.28951041 | J12: 20.45 | K12: 20.15 | L12: 20.302 | M12: 20.272 | N12: 20.332
A13: 9 | B13: =IF('MSA Verfahren 1 2s'!C27="",#N/A,'MSA Verfahren 1 2s'!C27) -> 20.307 | C13: 9 | D13: 20.307 | E13: 20.30348 | F13: 20.31279306 | G13: 20.31744959 | H13: 20.29416694 | I13: 20.28951041 | J13: 20.45 | K13: 20.15 | L13: 20.302 | M13: 20.272 | N13: 20.332
A14: 10 | B14: =IF('MSA Verfahren 1 2s'!C28="",#N/A,'MSA Verfahren 1 2s'!C28) -> 20.305 | C14: 10 | D14: 20.305 | E14: 20.30348 | F14: 20.31279306 | G14: 20.31744959 | H14: 20.29416694 | I14: 20.28951041 | J14: 20.45 | K14: 20.15 | L14: 20.302 | M14: 20.272 | N14: 20.332
A15: 11 | B15: =IF('MSA Verfahren 1 2s'!D24="",#N/A,'MSA Verfahren 1 2s'!D24) -> 20.311 | C15: 11 | D15: 20.311 | E15: 20.30348 | F15: 20.31279306 | G15: 20.31744959 | H15: 20.29416694 | I15: 20.28951041 | J15: 20.45 | K15: 20.15 | L15: 20.302 | M15: 20.272 | N15: 20.332 | P15: Lizenziert für | Q15: Ihre_Firma
A16: 12 | B16: =IF('MSA Verfahren 1 2s'!D25="",#N/A,'MSA Verfahren 1 2s'!D25) -> 20.297 | C16: 12 | D16: 20.297 | E16: 20.30348 | F16: 20.31279306 | G16: 20.31744959 | H16: 20.29416694 | I16: 20.28951041 | J16: 20.45 | K16: 20.15 | L16: 20.302 | M16: 20.272 | N16: 20.332
A17: 13 | B17: =IF('MSA Verfahren 1 2s'!D26="",#N/A,'MSA Verfahren 1 2s'!D26) -> 20.295 | C17: 13 | D17: 20.295 | E17: 20.30348 | F17: 20.31279306 | G17: 20.31744959 | H17: 20.29416694 | I17: 20.28951041 | J17: 20.45 | K17: 20.15 | L17: 20.302 | M17: 20.272 | N17: 20.332 | P17: Quelle: | Q17: http://www.sixsigmablackbelt.de/msa-messsystemanalyse-messmittelfaehigkeit/
A18: 14 | B18: =IF('MSA Verfahren 1 2s'!D27="",#N/A,'MSA Verfahren 1 2s'!D27) -> 20.302 | C18: 14 | D18: 20.302 | E18: 20.30348 | F18: 20.31279306 | G18: 20.31744959 | H18: 20.29416694 | I18: 20.28951041 | J18: 20.45 | K18: 20.15 | L18: 20.302 | M18: 20.272 | N18: 20.332
A19: 15 | B19: =IF('MSA Verfahren 1 2s'!D28="",#N/A,'MSA Verfahren 1 2s'!D28) -> 20.304 | C19: 15 | D19: 20.304 | E19: 20.30348 | F19: 20.31279306 | G19: 20.31744959 | H19: 20.29416694 | I19: 20.28951041 | J19: 20.45 | K19: 20.15 | L19: 20.302 | M19: 20.272 | N19: 20.332 | P19: Literatur: | Q19: Eignungsnachweis von Prüfprozessen: Prüfmittelfähigkeit und Messunsicherheit im aktuellen Normenumfeld
A20: 16 | B20: =IF('MSA Verfahren 1 2s'!E24="",#N/A,'MSA Verfahren 1 2s'!E24) -> 20.298 | C20: 16 | D20: 20.298 | E20: 20.30348 | F20: 20.31279306 | G20: 20.31744959 | H20: 20.29416694 | I20: 20.28951041 | J20: 20.45 | K20: 20.15 | L20: 20.302 | M20: 20.272 | N20: 20.332 | Q20: Statistische Verfahren zur Maschinen- und Prozessqualifikation
A21: 17 | B21: =IF('MSA Verfahren 1 2s'!E25="",#N/A,'MSA Verfahren 1 2s'!E25) -> 20.295 | C21: 17 | D21: 20.295 | E21: 20.30348 | F21: 20.31279306 | G21: 20.31744959 | H21: 20.29416694 | I21: 20.28951041 | J21: 20.45 | K21: 20.15 | L21: 20.302 | M21: 20.272 | N21: 20.332
A22: 18 | B22: =IF('MSA Verfahren 1 2s'!E26="",#N/A,'MSA Verfahren 1 2s'!E26) -> 20.301 | C22: 18 | D22: 20.301 | E22: 20.30348 | F22: 20.31279306 | G22: 20.31744959 | H22: 20.29416694 | I22: 20.28951041 | J22: 20.45 | K22: 20.15 | L22: 20.302 | M22: 20.272 | N22: 20.332 | P22: Berechnung mit Minitab
A23: 19 | B23: =IF('MSA Verfahren 1 2s'!E27="",#N/A,'MSA Verfahren 1 2s'!E27) -> 20.307 | C23: 19 | D23: 20.307 | E23: 20.30348 | F23: 20.31279306 | G23: 20.31744959 | H23: 20.29416694 | I23: 20.28951041 | J23: 20.45 | K23: 20.15 | L23: 20.302 | M23: 20.272 | N23: 20.332
A24: 20 | B24: =IF('MSA Verfahren 1 2s'!E28="",#N/A,'MSA Verfahren 1 2s'!E28) -> 20.312 | C24: 20 | D24: 20.312 | E24: 20.30348 | F24: 20.31279306 | G24: 20.31744959 | H24: 20.29416694 | I24: 20.28951041 | J24: 20.45 | K24: 20.15 | L24: 20.302 | M24: 20.272 | N24: 20.332
A25: 21 | B25: =IF('MSA Verfahren 1 2s'!F24="",#N/A,'MSA Verfahren 1 2s'!F24) -> 20.311 | C25: 21 | D25: 20.311 | E25: 20.30348 | F25: 20.31279306 | G25: 20.31744959 | H25: 20.29416694 | I25: 20.28951041 | J25: 20.45 | K25: 20.15 | L25: 20.302 | M25: 20.272 | N25: 20.332
A26: 22 | B26: =IF('MSA Verfahren 1 2s'!F25="",#N/A,'MSA Verfahren 1 2s'!F25) -> 20.309 | C26: 22 | D26: 20.309 | E26: 20.30348 | F26: 20.31279306 | G26: 20.31744959 | H26: 20.29416694 | I26: 20.28951041 | J26: 20.45 | K26: 20.15 | L26: 20.302 | M26: 20.272 | N26: 20.332
A27: 23 | B27: =IF('MSA Verfahren 1 2s'!F26="",#N/A,'MSA Verfahren 1 2s'!F26) -> 20.308 | C27: 23 | D27: 20.308 | E27: 20.30348 | F27: 20.31279306 | G27: 20.31744959 | H27: 20.29416694 | I27: 20.28951041 | J27: 20.45 | K27: 20.15 | L27: 20.302 | M27: 20.272 | N27: 20.332
A28: 24 | B28: =IF('MSA Verfahren 1 2s'!F27="",#N/A,'MSA Verfahren 1 2s'!F27) -> 20.304 | C28: 24 | D28: 20.304 | E28: 20.30348 | F28: 20.31279306 | G28: 20.31744959 | H28: 20.29416694 | I28: 20.28951041 | J28: 20.45 | K28: 20.15 | L28: 20.302 | M28: 20.272 | N28: 20.332
A29: 25 | B29: =IF('MSA Verfahren 1 2s'!F28="",#N/A,'MSA Verfahren 1 2s'!F28) -> 20.298 | C29: 25 | D29: 20.298 | E29: 20.30348 | F29: 20.31279306 | G29: 20.31744959 | H29: 20.29416694 | I29: 20.28951041 | J29: 20.45 | K29: 20.15 | L29: 20.302 | M29: 20.272 | N29: 20.332
A30: 26 | B30: =IF('MSA Verfahren 1 2s'!G24="",#N/A,'MSA Verfahren 1 2s'!G24) -> 20.308 | C30: 26 | D30: 20.308 | E30: 20.30348 | F30: 20.31279306 | G30: 20.31744959 | H30: 20.29416694 | I30: 20.28951041 | J30: 20.45 | K30: 20.15 | L30: 20.302 | M30: 20.272 | N30: 20.332
A31: 27 | B31: =IF('MSA Verfahren 1 2s'!G25="",#N/A,'MSA Verfahren 1 2s'!G25) -> 20.302 | C31: 27 | D31: 20.302 | E31: 20.30348 | F31: 20.31279306 | G31: 20.31744959 | H31: 20.29416694 | I31: 20.28951041 | J31: 20.45 | K31: 20.15 | L31: 20.302 | M31: 20.272 | N31: 20.332
A32: 28 | B32: =IF('MSA Verfahren 1 2s'!G26="",#N/A,'MSA Verfahren 1 2s'!G26) -> 20.294 | C32: 28 | D32: 20.294 | E32: 20.30348 | F32: 20.31279306 | G32: 20.31744959 | H32: 20.29416694 | I32: 20.28951041 | J32: 20.45 | K32: 20.15 | L32: 20.302 | M32: 20.272 | N32: 20.332
A33: 29 | B33: =IF('MSA Verfahren 1 2s'!G27="",#N/A,'MSA Verfahren 1 2s'!G27) -> 20.302 | C33: 29 | D33: 20.302 | E33: 20.30348 | F33: 20.31279306 | G33: 20.31744959 | H33: 20.29416694 | I33: 20.28951041 | J33: 20.45 | K33: 20.15 | L33: 20.302 | M33: 20.272 | N33: 20.332
A34: 30 | B34: =IF('MSA Verfahren 1 2s'!G28="",#N/A,'MSA Verfahren 1 2s'!G28) -> 20.304 | C34: 30 | D34: 20.304 | E34: 20.30348 | F34: 20.31279306 | G34: 20.31744959 | H34: 20.29416694 | I34: 20.28951041 | J34: 20.45 | K34: 20.15 | L34: 20.302 | M34: 20.272 | N34: 20.332
A35: 31 | B35: =IF('MSA Verfahren 1 2s'!H24="",#N/A,'MSA Verfahren 1 2s'!H24) -> 20.313 | C35: 31 | D35: 20.313 | E35: 20.30348 | F35: 20.31279306 | G35: 20.31744959 | H35: 20.29416694 | I35: 20.28951041 | J35: 20.45 | K35: 20.15 | L35: 20.302 | M35: 20.272 | N35: 20.332
A36: 32 | B36: =IF('MSA Verfahren 1 2s'!H25="",#N/A,'MSA Verfahren 1 2s'!H25) -> 20.303 | C36: 32 | D36: 20.303 | E36: 20.30348 | F36: 20.31279306 | G36: 20.31744959 | H36: 20.29416694 | I36: 20.28951041 | J36: 20.45 | K36: 20.15 | L36: 20.302 | M36: 20.272 | N36: 20.332
A37: 33 | B37: =IF('MSA Verfahren 1 2s'!H26="",#N/A,'MSA Verfahren 1 2s'!H26) -> 20.308 | C37: 33 | D37: 20.308 | E37: =Mittelwert2s -> 20.30348 | F37: =xg2s+2*sg2s -> 20.31279306 | G37: =xg2s+3*sg2s -> 20.31744959 | H37: =xg2s-2*sg2s -> 20.29416694 | I37: =xg2s-3*sg2s -> 20.28951041 | J37: =OSG2s -> 20.45 | K37: =USG2s -> 20.15 | L37: =xm2s -> 20.302 | M37: =xm2s-0.1*T2s -> 20.272 | N37: =xm2s+0.1*T2s -> 20.332
A38: 34 | B38: =IF('MSA Verfahren 1 2s'!H27="",#N/A,'MSA Verfahren 1 2s'!H27) -> 20.298 | C38: 34 | D38: 20.298 | E38: 20.30348 | F38: 20.31279306 | G38: 20.31744959 | H38: 20.29416694 | I38: 20.28951041 | J38: 20.45 | K38: 20.15 | L38: 20.302 | M38: 20.272 | N38: 20.332
A39: 35 | B39: =IF('MSA Verfahren 1 2s'!H28="",#N/A,'MSA Verfahren 1 2s'!H28) -> 20.306 | C39: 35 | D39: 20.306 | E39: 20.30348 | F39: 20.31279306 | G39: 20.31744959 | H39: 20.29416694 | I39: 20.28951041 | J39: 20.45 | K39: 20.15 | L39: 20.302 | M39: 20.272 | N39: 20.332
A40: 36 | B40: =IF('MSA Verfahren 1 2s'!I24="",#N/A,'MSA Verfahren 1 2s'!I24) -> 20.303 | C40: 36 | D40: 20.303 | E40: 20.30348 | F40: 20.31279306 | G40: 20.31744959 | H40: 20.29416694 | I40: 20.28951041 | J40: 20.45 | K40: 20.15 | L40: 20.302 | M40: 20.272 | N40: 20.332
A41: 37 | B41: =IF('MSA Verfahren 1 2s'!I25="",#N/A,'MSA Verfahren 1 2s'!I25) -> 20.31 | C41: 37 | D41: 20.31 | E41: 20.30348 | F41: 20.31279306 | G41: 20.31744959 | H41: 20.29416694 | I41: 20.28951041 | J41: 20.45 | K41: 20.15 | L41: 20.302 | M41: 20.272 | N41: 20.332
A42: 38 | B42: =IF('MSA Verfahren 1 2s'!I26="",#N/A,'MSA Verfahren 1 2s'!I26) -> 20.304 | C42: 38 | D42: 20.304 | E42: 20.30348 | F42: 20.31279306 | G42: 20.31744959 | H42: 20.29416694 | I42: 20.28951041 | J42: 20.45 | K42: 20.15 | L42: 20.302 | M42: 20.272 | N42: 20.332
A43: 39 | B43: =IF('MSA Verfahren 1 2s'!I27="",#N/A,'MSA Verfahren 1 2s'!I27) -> 20.309 | C43: 39 | D43: 20.309 | E43: 20.30348 | F43: 20.31279306 | G43: 20.31744959 | H43: 20.29416694 | I43: 20.28951041 | J43: 20.45 | K43: 20.15 | L43: 20.302 | M43: 20.272 | N43: 20.332
A44: 40 | B44: =IF('MSA Verfahren 1 2s'!I28="",#N/A,'MSA Verfahren 1 2s'!I28) -> 20.305 | C44: 40 | D44: 20.305 | E44: 20.30348 | F44: 20.31279306 | G44: 20.31744959 | H44: 20.29416694 | I44: 20.28951041 | J44: 20.45 | K44: 20.15 | L44: 20.302 | M44: 20.272 | N44: 20.332
A45: 41 | B45: =IF('MSA Verfahren 1 2s'!J24="",#N/A,'MSA Verfahren 1 2s'!J24) -> 20.306 | C45: 41 | D45: 20.306 | E45: 20.30348 | F45: 20.31279306 | G45: 20.31744959 | H45: 20.29416694 | I45: 20.28951041 | J45: 20.45 | K45: 20.15 | L45: 20.302 | M45: 20.272 | N45: 20.332
A46: 42 | B46: =IF('MSA Verfahren 1 2s'!J25="",#N/A,'MSA Verfahren 1 2s'!J25) -> 20.296 | C46: 42 | D46: 20.296 | E46: 20.30348 | F46: 20.31279306 | G46: 20.31744959 | H46: 20.29416694 | I46: 20.28951041 | J46: 20.45 | K46: 20.15 | L46: 20.302 | M46: 20.272 | N46: 20.332
A47: 43 | B47: =IF('MSA Verfahren 1 2s'!J26="",#N/A,'MSA Verfahren 1 2s'!J26) -> 20.306 | C47: 43 | D47: 20.306 | E47: 20.30348 | F47: 20.31279306 | G47: 20.31744959 | H47: 20.29416694 | I47: 20.28951041 | J47: 20.45 | K47: 20.15 | L47: 20.302 | M47: 20.272 | N47: 20.332
A48: 44 | B48: =IF('MSA Verfahren 1 2s'!J27="",#N/A,'MSA Verfahren 1 2s'!J27) -> 20.299 | C48: 44 | D48: 20.299 | E48: 20.30348 | F48: 20.31279306 | G48: 20.31744959 | H48: 20.29416694 | I48: 20.28951041 | J48: 20.45 | K48: 20.15 | L48: 20.302 | M48: 20.272 | N48: 20.332
A49: 45 | B49: =IF('MSA Verfahren 1 2s'!J28="",#N/A,'MSA Verfahren 1 2s'!J28) -> 20.3 | C49: 45 | D49: 20.3 | E49: 20.30348 | F49: 20.31279306 | G49: 20.31744959 | H49: 20.29416694 | I49: 20.28951041 | J49: 20.45 | K49: 20.15 | L49: 20.302 | M49: 20.272 | N49: 20.332
A50: 46 | B50: =IF('MSA Verfahren 1 2s'!K24="",#N/A,'MSA Verfahren 1 2s'!K24) -> 20.302 | C50: 46 | D50: 20.302 | E50: 20.30348 | F50: 20.31279306 | G50: 20.31744959 | H50: 20.29416694 | I50: 20.28951041 | J50: 20.45 | K50: 20.15 | L50: 20.302 | M50: 20.272 | N50: 20.332
A51: 47 | B51: =IF('MSA Verfahren 1 2s'!K25="",#N/A,'MSA Verfahren 1 2s'!K25) -> 20.303 | C51: 47 | D51: 20.303 | E51: 20.30348 | F51: 20.31279306 | G51: 20.31744959 | H51: 20.29416694 | I51: 20.28951041 | J51: 20.45 | K51: 20.15 | L51: 20.302 | M51: 20.272 | N51: 20.332
A52: 48 | B52: =IF('MSA Verfahren 1 2s'!K26="",#N/A,'MSA Verfahren 1 2s'!K26) -> 20.307 | C52: 48 | D52: 20.307 | E52: 20.30348 | F52: 20.31279306 | G52: 20.31744959 | H52: 20.29416694 | I52: 20.28951041 | J52: 20.45 | K52: 20.15 | L52: 20.302 | M52: 20.272 | N52: 20.332
A53: 49 | B53: =IF('MSA Verfahren 1 2s'!K27="",#N/A,'MSA Verfahren 1 2s'!K27) -> 20.303 | C53: 49 | D53: 20.303 | E53: 20.30348 | F53: 20.31279306 | G53: 20.31744959 | H53: 20.29416694 | I53: 20.28951041 | J53: 20.45 | K53: 20.15 | L53: 20.302 | M53: 20.272 | N53: 20.332
A54: 50 | B54: =IF('MSA Verfahren 1 2s'!K28="",#N/A,'MSA Verfahren 1 2s'!K28) -> 20.305 | C54: 50 | D54: 20.305 | E54: 20.30348 | F54: 20.31279306 | G54: 20.31744959 | H54: 20.29416694 | I54: 20.28951041 | J54: 20.45 | K54: 20.15 | L54: 20.302 | M54: 20.272 | N54: 20.332

Sheet MSA Verfahren 1 Berechnung 3s (hidden)
D1: Diagramm | P1: Diagramm cg und cgk
A3: Bezeichnung für Diagramm | B3: ='MSA Verfahren 1 3s'!$I$5 -> Durchmesser | D3: Durchmesser | E3: Mittelwert Merkmal | F3: ="+2 sg" -> +2 sg | G3: ="+3 sg" -> +3 sg | H3: ="-2 sg" -> -2 sg | I3: ="-3 sg" -> -3 sg | J3: OSG Merkmal | K3: USG Merkmal | L3: Mittelwert Normal | M3: USG Normal | N3: OSG Normal | P3: cgk | Q3: 0 | R3: =cgk3s -> 2.041577753 | S3: 0
A4: i | B4: x(i) | D4: x(i) | E4: xg | F4: xg+2*sg | G4: xg+3*sg | H4: xg-2*sg | I4: xg-3*sg | J4: OSG | K4: USG | L4: xm | M4: xm-0,1*T | N4: xm+0,1*T | P4: Anforderung cgk | Q4: =Forderungcgk3s -> 1.33 | R4: 0 | S4: =ABS(Q4-R3)+0.2 -> 0.9115777533
A5: 1 | B5: =IF('MSA Verfahren 1 3s'!B24="",#N/A,'MSA Verfahren 1 3s'!B24) -> 20.303 | C5: =IF(B5<>"",A5,1) -> 1 | D5: =IF(B5<>"",B5,"") -> 20.303 | E5: =Mittelwert3s -> 20.30348 | F5: =xg3s+2*sg3s -> 20.31279306 | G5: =xg3s+3*sg3s -> 20.31744959 | H5: =xg3s-2*sg3s -> 20.29416694 | I5: =xg3s-3*sg3s -> 20.28951041 | J5: =OSG3s -> 20.45 | K5: =USG3s -> 20.15 | L5: =xm3s -> 20.302 | M5: =xm3s-0.1*T3s -> 20.272 | N5: =xm3s+0.1*T3s -> 20.332
A6: 2 | B6: =IF('MSA Verfahren 1 3s'!B25="",#N/A,'MSA Verfahren 1 3s'!B25) -> 20.301 | C6: =IF(B6<>"",A6,C5) -> 2 | D6: =IF(B6<>"",B6,D5) -> 20.301 | E6: 20.30348 | F6: 20.31279306 | G6: 20.31744959 | H6: 20.29416694 | I6: 20.28951041 | J6: 20.45 | K6: 20.15 | L6: 20.302 | M6: 20.272 | N6: 20.332 | P6: cg | Q6: 0 | R6: =cg3s -> 2.147522181 | S6: 0
A7: 3 | B7: =IF('MSA Verfahren 1 3s'!B26="",#N/A,'MSA Verfahren 1 3s'!B26) -> 20.304 | C7: =IF(B7<>"",A7,C6) -> 3 | D7: =IF(B7<>"",B7,D6) -> 20.304 | E7: 20.30348 | F7: 20.31279306 | G7: 20.31744959 | H7: 20.29416694 | I7: 20.28951041 | J7: 20.45 | K7: 20.15 | L7: 20.302 | M7: 20.272 | N7: 20.332 | P7: Anforderung cg | Q7: =Forderungcg3s -> 1.33 | R7: 0 | S7: =ABS(Q7-R6)+0.2 -> 1.017522181
A8: 4 | B8: =IF('MSA Verfahren 1 3s'!B27="",#N/A,'MSA Verfahren 1 3s'!B27) -> 20.303 | C8: 4 | D8: 20.303 | E8: 20.30348 | F8: 20.31279306 | G8: 20.31744959 | H8: 20.29416694 | I8: 20.28951041 | J8: 20.45 | K8: 20.15 | L8: 20.302 | M8: 20.272 | N8: 20.332
A9: 5 | B9: =IF('MSA Verfahren 1 3s'!B28="",#N/A,'MSA Verfahren 1 3s'!B28) -> 20.306 | C9: 5 | D9: 20.306 | E9: 20.30348 | F9: 20.31279306 | G9: 20.31744959 | H9: 20.29416694 | I9: 20.28951041 | J9: 20.45 | K9: 20.15 | L9: 20.302 | M9: 20.272 | N9: 20.332
A10: 6 | B10: =IF('MSA Verfahren 1 3s'!C24="",#N/A,'MSA Verfahren 1 3s'!C24) -> 20.296 | C10: 6 | D10: 20.296 | E10: 20.30348 | F10: 20.31279306 | G10: 20.31744959 | H10: 20.29416694 | I10: 20.28951041 | J10: 20.45 | K10: 20.15 | L10: 20.302 | M10: 20.272 | N10: 20.332
A11: 7 | B11: =IF('MSA Verfahren 1 3s'!C25="",#N/A,'MSA Verfahren 1 3s'!C25) -> 20.301 | C11: 7 | D11: 20.301 | E11: 20.30348 | F11: 20.31279306 | G11: 20.31744959 | H11: 20.29416694 | I11: 20.28951041 | J11: 20.45 | K11: 20.15 | L11: 20.302 | M11: 20.272 | N11: 20.332
A12: 8 | B12: =IF('MSA Verfahren 1 3s'!C26="",#N/A,'MSA Verfahren 1 3s'!C26) -> 20.3 | C12: 8 | D12: 20.3 | E12: 20.30348 | F12: 20.31279306 | G12: 20.31744959 | H12: 20.29416694 | I12: 20.28951041 | J12: 20.45 | K12: 20.15 | L12: 20.302 | M12: 20.272 | N12: 20.332
A13: 9 | B13: =IF('MSA Verfahren 1 3s'!C27="",#N/A,'MSA Verfahren 1 3s'!C27) -> 20.307 | C13: 9 | D13: 20.307 | E13: 20.30348 | F13: 20.31279306 | G13: 20.31744959 | H13: 20.29416694 | I13: 20.28951041 | J13: 20.45 | K13: 20.15 | L13: 20.302 | M13: 20.272 | N13: 20.332
A14: 10 | B14: =IF('MSA Verfahren 1 3s'!C28="",#N/A,'MSA Verfahren 1 3s'!C28) -> 20.305 | C14: 10 | D14: 20.305 | E14: 20.30348 | F14: 20.31279306 | G14: 20.31744959 | H14: 20.29416694 | I14: 20.28951041 | J14: 20.45 | K14: 20.15 | L14: 20.302 | M14: 20.272 | N14: 20.332
A15: 11 | B15: =IF('MSA Verfahren 1 3s'!D24="",#N/A,'MSA Verfahren 1 3s'!D24) -> 20.311 | C15: 11 | D15: 20.311 | E15: 20.30348 | F15: 20.31279306 | G15: 20.31744959 | H15: 20.29416694 | I15: 20.28951041 | J15: 20.45 | K15: 20.15 | L15: 20.302 | M15: 20.272 | N15: 20.332
A16: 12 | B16: =IF('MSA Verfahren 1 3s'!D25="",#N/A,'MSA Verfahren 1 3s'!D25) -> 20.297 | C16: 12 | D16: 20.297 | E16: 20.30348 | F16: 20.31279306 | G16: 20.31744959 | H16: 20.29416694 | I16: 20.28951041 | J16: 20.45 | K16: 20.15 | L16: 20.302 | M16: 20.272 | N16: 20.332
A17: 13 | B17: =IF('MSA Verfahren 1 3s'!D26="",#N/A,'MSA Verfahren 1 3s'!D26) -> 20.295 | C17: 13 | D17: 20.295 | E17: 20.30348 | F17: 20.31279306 | G17: 20.31744959 | H17: 20.29416694 | I17: 20.28951041 | J17: 20.45 | K17: 20.15 | L17: 20.302 | M17: 20.272 | N17: 20.332 | P17: Quelle: | Q17: http://www.sixsigmablackbelt.de/msa-messsystemanalyse-messmittelfaehigkeit/
A18: 14 | B18: =IF('MSA Verfahren 1 3s'!D27="",#N/A,'MSA Verfahren 1 3s'!D27) -> 20.302 | C18: 14 | D18: 20.302 | E18: 20.30348 | F18: 20.31279306 | G18: 20.31744959 | H18: 20.29416694 | I18: 20.28951041 | J18: 20.45 | K18: 20.15 | L18: 20.302 | M18: 20.272 | N18: 20.332
A19: 15 | B19: =IF('MSA Verfahren 1 3s'!D28="",#N/A,'MSA Verfahren 1 3s'!D28) -> 20.304 | C19: 15 | D19: 20.304 | E19: 20.30348 | F19: 20.31279306 | G19: 20.31744959 | H19: 20.29416694 | I19: 20.28951041 | J19: 20.45 | K19: 20.15 | L19: 20.302 | M19: 20.272 | N19: 20.332 | P19: Literatur: | Q19: Eignungsnachweis von Prüfprozessen: Prüfmittelfähigkeit und Messunsicherheit im aktuellen Normenumfeld
A20: 16 | B20: =IF('MSA Verfahren 1 3s'!E24="",#N/A,'MSA Verfahren 1 3s'!E24) -> 20.298 | C20: 16 | D20: 20.298 | E20: 20.30348 | F20: 20.31279306 | G20: 20.31744959 | H20: 20.29416694 | I20: 20.28951041 | J20: 20.45 | K20: 20.15 | L20: 20.302 | M20: 20.272 | N20: 20.332 | Q20: Statistische Verfahren zur Maschinen- und Prozessqualifikation
A21: 17 | B21: =IF('MSA Verfahren 1 3s'!E25="",#N/A,'MSA Verfahren 1 3s'!E25) -> 20.295 | C21: 17 | D21: 20.295 | E21: 20.30348 | F21: 20.31279306 | G21: 20.31744959 | H21: 20.29416694 | I21: 20.28951041 | J21: 20.45 | K21: 20.15 | L21: 20.302 | M21: 20.272 | N21: 20.332
A22: 18 | B22: =IF('MSA Verfahren 1 3s'!E26="",#N/A,'MSA Verfahren 1 3s'!E26) -> 20.301 | C22: 18 | D22: 20.301 | E22: 20.30348 | F22: 20.31279306 | G22: 20.31744959 | H22: 20.29416694 | I22: 20.28951041 | J22: 20.45 | K22: 20.15 | L22: 20.302 | M22: 20.272 | N22: 20.332 | P22: Berechnung mit Minitab
A23: 19 | B23: =IF('MSA Verfahren 1 3s'!E27="",#N/A,'MSA Verfahren 1 3s'!E27) -> 20.307 | C23: 19 | D23: 20.307 | E23: 20.30348 | F23: 20.31279306 | G23: 20.31744959 | H23: 20.29416694 | I23: 20.28951041 | J23: 20.45 | K23: 20.15 | L23: 20.302 | M23: 20.272 | N23: 20.332
A24: 20 | B24: =IF('MSA Verfahren 1 3s'!E28="",#N/A,'MSA Verfahren 1 3s'!E28) -> 20.312 | C24: 20 | D24: 20.312 | E24: 20.30348 | F24: 20.31279306 | G24: 20.31744959 | H24: 20.29416694 | I24: 20.28951041 | J24: 20.45 | K24: 20.15 | L24: 20.302 | M24: 20.272 | N24: 20.332
A25: 21 | B25: =IF('MSA Verfahren 1 3s'!F24="",#N/A,'MSA Verfahren 1 3s'!F24) -> 20.311 | C25: 21 | D25: 20.311 | E25: 20.30348 | F25: 20.31279306 | G25: 20.31744959 | H25: 20.29416694 | I25: 20.28951041 | J25: 20.45 | K25: 20.15 | L25: 20.302 | M25: 20.272 | N25: 20.332
A26: 22 | B26: =IF('MSA Verfahren 1 3s'!F25="",#N/A,'MSA Verfahren 1 3s'!F25) -> 20.309 | C26: 22 | D26: 20.309 | E26: 20.30348 | F26: 20.31279306 | G26: 20.31744959 | H26: 20.29416694 | I26: 20.28951041 | J26: 20.45 | K26: 20.15 | L26: 20.302 | M26: 20.272 | N26: 20.332
A27: 23 | B27: =IF('MSA Verfahren 1 3s'!F26="",#N/A,'MSA Verfahren 1 3s'!F26) -> 20.308 | C27: 23 | D27: 20.308 | E27: 20.30348 | F27: 20.31279306 | G27: 20.31744959 | H27: 20.29416694 | I27: 20.28951041 | J27: 20.45 | K27: 20.15 | L27: 20.302 | M27: 20.272 | N27: 20.332
A28: 24 | B28: =IF('MSA Verfahren 1 3s'!F27="",#N/A,'MSA Verfahren 1 3s'!F27) -> 20.304 | C28: 24 | D28: 20.304 | E28: 20.30348 | F28: 20.31279306 | G28: 20.31744959 | H28: 20.29416694 | I28: 20.28951041 | J28: 20.45 | K28: 20.15 | L28: 20.302 | M28: 20.272 | N28: 20.332
A29: 25 | B29: =IF('MSA Verfahren 1 3s'!F28="",#N/A,'MSA Verfahren 1 3s'!F28) -> 20.298 | C29: 25 | D29: 20.298 | E29: 20.30348 | F29: 20.31279306 | G29: 20.31744959 | H29: 20.29416694 | I29: 20.28951041 | J29: 20.45 | K29: 20.15 | L29: 20.302 | M29: 20.272 | N29: 20.332
A30: 26 | B30: =IF('MSA Verfahren 1 3s'!G24="",#N/A,'MSA Verfahren 1 3s'!G24) -> 20.308 | C30: 26 | D30: 20.308 | E30: 20.30348 | F30: 20.31279306 | G30: 20.31744959 | H30: 20.29416694 | I30: 20.28951041 | J30: 20.45 | K30: 20.15 | L30: 20.302 | M30: 20.272 | N30: 20.332
A31: 27 | B31: =IF('MSA Verfahren 1 3s'!G25="",#N/A,'MSA Verfahren 1 3s'!G25) -> 20.302 | C31: 27 | D31: 20.302 | E31: 20.30348 | F31: 20.31279306 | G31: 20.31744959 | H31: 20.29416694 | I31: 20.28951041 | J31: 20.45 | K31: 20.15 | L31: 20.302 | M31: 20.272 | N31: 20.332
A32: 28 | B32: =IF('MSA Verfahren 1 3s'!G26="",#N/A,'MSA Verfahren 1 3s'!G26) -> 20.294 | C32: 28 | D32: 20.294 | E32: 20.30348 | F32: 20.31279306 | G32: 20.31744959 | H32: 20.29416694 | I32: 20.28951041 | J32: 20.45 | K32: 20.15 | L32: 20.302 | M32: 20.272 | N32: 20.332
A33: 29 | B33: =IF('MSA Verfahren 1 3s'!G27="",#N/A,'MSA Verfahren 1 3s'!G27) -> 20.302 | C33: 29 | D33: 20.302 | E33: 20.30348 | F33: 20.31279306 | G33: 20.31744959 | H33: 20.29416694 | I33: 20.28951041 | J33: 20.45 | K33: 20.15 | L33: 20.302 | M33: 20.272 | N33: 20.332
A34: 30 | B34: =IF('MSA Verfahren 1 3s'!G28="",#N/A,'MSA Verfahren 1 3s'!G28) -> 20.304 | C34: 30 | D34: 20.304 | E34: 20.30348 | F34: 20.31279306 | G34: 20.31744959 | H34: 20.29416694 | I34: 20.28951041 | J34: 20.45 | K34: 20.15 | L34: 20.302 | M34: 20.272 | N34: 20.332
A35: 31 | B35: =IF('MSA Verfahren 1 3s'!H24="",#N/A,'MSA Verfahren 1 3s'!H24) -> 20.313 | C35: 31 | D35: 20.313 | E35: 20.30348 | F35: 20.31279306 | G35: 20.31744959 | H35: 20.29416694 | I35: 20.28951041 | J35: 20.45 | K35: 20.15 | L35: 20.302 | M35: 20.272 | N35: 20.332
A36: 32 | B36: =IF('MSA Verfahren 1 3s'!H25="",#N/A,'MSA Verfahren 1 3s'!H25) -> 20.303 | C36: 32 | D36: 20.303 | E36: 20.30348 | F36: 20.31279306 | G36: 20.31744959 | H36: 20.29416694 | I36: 20.28951041 | J36: 20.45 | K36: 20.15 | L36: 20.302 | M36: 20.272 | N36: 20.332
A37: 33 | B37: =IF('MSA Verfahren 1 3s'!H26="",#N/A,'MSA Verfahren 1 3s'!H26) -> 20.308 | C37: 33 | D37: 20.308 | E37: 20.30348 | F37: =xg3s+2*sg3s -> 20.31279306 | G37: =xg3s+3*sg3s -> 20.31744959 | H37: =xg3s-2*sg3s -> 20.29416694 | I37: =xg3s-3*sg3s -> 20.28951041 | J37: 20.45 | K37: 20.15 | L37: 20.302 | M37: 20.272 | N37: 20.332
A38: 34 | B38: =IF('MSA Verfahren 1 3s'!H27="",#N/A,'MSA Verfahren 1 3s'!H27) -> 20.298 | C38: 34 | D38: 20.298 | E38: 20.30348 | F38: 20.31279306 | G38: 20.31744959 | H38: 20.29416694 | I38: 20.28951041 | J38: 20.45 | K38: 20.15 | L38: 20.302 | M38: 20.272 | N38: 20.332
A39: 35 | B39: =IF('MSA Verfahren 1 3s'!H28="",#N/A,'MSA Verfahren 1 3s'!H28) -> 20.306 | C39: 35 | D39: 20.306 | E39: 20.30348 | F39: 20.31279306 | G39: 20.31744959 | H39: 20.29416694 | I39: 20.28951041 | J39: 20.45 | K39: 20.15 | L39: 20.302 | M39: 20.272 | N39: 20.332
A40: 36 | B40: =IF('MSA Verfahren 1 3s'!I24="",#N/A,'MSA Verfahren 1 3s'!I24) -> 20.303 | C40: 36 | D40: 20.303 | E40: 20.30348 | F40: 20.31279306 | G40: 20.31744959 | H40: 20.29416694 | I40: 20.28951041 | J40: 20.45 | K40: 20.15 | L40: 20.302 | M40: 20.272 | N40: 20.332
A41: 37 | B41: =IF('MSA Verfahren 1 3s'!I25="",#N/A,'MSA Verfahren 1 3s'!I25) -> 20.31 | C41: 37 | D41: 20.31 | E41: 20.30348 | F41: 20.31279306 | G41: 20.31744959 | H41: 20.29416694 | I41: 20.28951041 | J41: 20.45 | K41: 20.15 | L41: 20.302 | M41: 20.272 | N41: 20.332
A42: 38 | B42: =IF('MSA Verfahren 1 3s'!I26="",#N/A,'MSA Verfahren 1 3s'!I26) -> 20.304 | C42: 38 | D42: 20.304 | E42: 20.30348 | F42: 20.31279306 | G42: 20.31744959 | H42: 20.29416694 | I42: 20.28951041 | J42: 20.45 | K42: 20.15 | L42: 20.302 | M42: 20.272 | N42: 20.332
A43: 39 | B43: =IF('MSA Verfahren 1 3s'!I27="",#N/A,'MSA Verfahren 1 3s'!I27) -> 20.309 | C43: 39 | D43: 20.309 | E43: 20.30348 | F43: 20.31279306 | G43: 20.31744959 | H43: 20.29416694 | I43: 20.28951041 | J43: 20.45 | K43: 20.15 | L43: 20.302 | M43: 20.272 | N43: 20.332
A44: 40 | B44: =IF('MSA Verfahren 1 3s'!I28="",#N/A,'MSA Verfahren 1 3s'!I28) -> 20.305 | C44: 40 | D44: 20.305 | E44: 20.30348 | F44: 20.31279306 | G44: 20.31744959 | H44: 20.29416694 | I44: 20.28951041 | J44: 20.45 | K44: 20.15 | L44: 20.302 | M44: 20.272 | N44: 20.332
A45: 41 | B45: =IF('MSA Verfahren 1 3s'!J24="",#N/A,'MSA Verfahren 1 3s'!J24) -> 20.306 | C45: 41 | D45: 20.306 | E45: 20.30348 | F45: 20.31279306 | G45: 20.31744959 | H45: 20.29416694 | I45: 20.28951041 | J45: 20.45 | K45: 20.15 | L45: 20.302 | M45: 20.272 | N45: 20.332
A46: 42 | B46: =IF('MSA Verfahren 1 3s'!J25="",#N/A,'MSA Verfahren 1 3s'!J25) -> 20.296 | C46: 42 | D46: 20.296 | E46: 20.30348 | F46: 20.31279306 | G46: 20.31744959 | H46: 20.29416694 | I46: 20.28951041 | J46: 20.45 | K46: 20.15 | L46: 20.302 | M46: 20.272 | N46: 20.332
A47: 43 | B47: =IF('MSA Verfahren 1 3s'!J26="",#N/A,'MSA Verfahren 1 3s'!J26) -> 20.306 | C47: 43 | D47: 20.306 | E47: 20.30348 | F47: 20.31279306 | G47: 20.31744959 | H47: 20.29416694 | I47: 20.28951041 | J47: 20.45 | K47: 20.15 | L47: 20.302 | M47: 20.272 | N47: 20.332
A48: 44 | B48: =IF('MSA Verfahren 1 3s'!J27="",#N/A,'MSA Verfahren 1 3s'!J27) -> 20.299 | C48: 44 | D48: 20.299 | E48: 20.30348 | F48: 20.31279306 | G48: 20.31744959 | H48: 20.29416694 | I48: 20.28951041 | J48: 20.45 | K48: 20.15 | L48: 20.302 | M48: 20.272 | N48: 20.332
A49: 45 | B49: =IF('MSA Verfahren 1 3s'!J28="",#N/A,'MSA Verfahren 1 3s'!J28) -> 20.3 | C49: 45 | D49: 20.3 | E49: 20.30348 | F49: 20.31279306 | G49: 20.31744959 | H49: 20.29416694 | I49: 20.28951041 | J49: 20.45 | K49: 20.15 | L49: 20.302 | M49: 20.272 | N49: 20.332
A50: 46 | B50: =IF('MSA Verfahren 1 3s'!K24="",#N/A,'MSA Verfahren 1 3s'!K24) -> 20.302 | C50: 46 | D50: 20.302 | E50: 20.30348 | F50: 20.31279306 | G50: 20.31744959 | H50: 20.29416694 | I50: 20.28951041 | J50: 20.45 | K50: 20.15 | L50: 20.302 | M50: 20.272 | N50: 20.332
A51: 47 | B51: =IF('MSA Verfahren 1 3s'!K25="",#N/A,'MSA Verfahren 1 3s'!K25) -> 20.303 | C51: 47 | D51: 20.303 | E51: 20.30348 | F51: 20.31279306 | G51: 20.31744959 | H51: 20.29416694 | I51: 20.28951041 | J51: 20.45 | K51: 20.15 | L51: 20.302 | M51: 20.272 | N51: 20.332
A52: 48 | B52: =IF('MSA Verfahren 1 3s'!K26="",#N/A,'MSA Verfahren 1 3s'!K26) -> 20.307 | C52: 48 | D52: 20.307 | E52: 20.30348 | F52: 20.31279306 | G52: 20.31744959 | H52: 20.29416694 | I52: 20.28951041 | J52: 20.45 | K52: 20.15 | L52: 20.302 | M52: 20.272 | N52: 20.332
A53: 49 | B53: =IF('MSA Verfahren 1 3s'!K27="",#N/A,'MSA Verfahren 1 3s'!K27) -> 20.303 | C53: 49 | D53: 20.303 | E53: 20.30348 | F53: 20.31279306 | G53: 20.31744959 | H53: 20.29416694 | I53: 20.28951041 | J53: 20.45 | K53: 20.15 | L53: 20.302 | M53: 20.272 | N53: 20.332
A54: 50 | B54: =IF('MSA Verfahren 1 3s'!K28="",#N/A,'MSA Verfahren 1 3s'!K28) -> 20.305 | C54: 50 | D54: 20.305 | E54: 20.30348 | F54: 20.31279306 | G54: 20.31744959 | H54: 20.29416694 | I54: 20.28951041 | J54: 20.45 | K54: 20.15 | L54: 20.302 | M54: 20.272 | N54: 20.332
